bitfinex/quotes_SOLUSD_20251106
["timestamp","ask_amount","ask_price","bid_price","bid_amount"]
[1762447735899,20.592,155.12,155.07,14.56832727]
[1762447735900,4.54973447,155.1,155.07,14.56832727]
[1762447736097,20.592,155.12,155.03,0.1]
[1762447736098,4.54973447,155.08,155.03,0.1]
[1762447736408,4.93763329,155.07,155.04,8.12]
[1762447736602,4.24763329,155.06,155.04,8.12]
[1762447736807,4.93577117,155.05,155.04,8.12]
[1762447737096,4.93577117,155.05,155.03,0.1]
[1762447737308,25.52777117,155.04,155.03,0.1]
[1762447737506,30.07750564,155.04,155.03,0.1]
[1762447738294,46.31628173,155.04,154.97,0.1]
[1762447738495,29.69146894,154.98,154.97,0.1]
[1762447738704,29.38750564,154.98,154.97,0.1]
[1762447739016,4.23646756,154.98,154.97,6.55286184]
[1762447739223,20.592,154.99,154.97,7.22286184]
[1762447739429,20.592,154.99,154.97,0.77]
[1762447739593,8.78649205,154.98,154.97,0.1]
[1762447739796,4.23675758,154.98,154.97,0.1]
[1762447740012,14.08026974,154.98,154.97,0.1]
[1762447740217,16.47102228,154.98,154.9,20.89973447]
[1762447740490,5.2965407,154.96,154.92,4.54973447]
[1762447740691,4.23675758,154.95,154.94,9.78882769]
[1762447740897,8.78649205,154.95,154.92,8.12]
[1762447741209,4.23675758,154.94,154.93,0.64545278]
[1762447741400,4.54973447,154.97,154.94,9.78882769]
[1762447741594,4.23195004,154.96,154.95,8.12]
[1762447741791,4.23195004,154.96,154.95,0.67]
[1762447741991,0.69,155.04,154.95,0.67]
[1762447741992,5.2965407,155.04,154.96,9.78882769]
[1762447742197,20.592,155.05,155.0,4.54973447]
[1762447742421,9.84627517,155.06,155.0,5.86489576]
[1762447742591,20.592,155.05,155.01,4.54973447]
[1762447742797,20.592,155.05,155.02,8.76507805]
[1762447743011,20.592,155.04,155.02,8.76507805]
[1762447743317,5.2965407,155.08,155.03,13.33973447]
[1762447743519,20.592,155.07,155.04,8.12]
[1762447744020,5.2965407,155.11,155.05,13.33973447]
[1762447744193,5.2965407,155.12,155.05,8.79]
[1762447744390,5.9865407,155.12,155.05,8.79]
[1762447744594,4.54973447,155.1,155.05,8.79]
[1762447744794,11.04234203,155.13,155.05,8.12]
[1762447744795,25.14173447,155.08,155.05,8.12]
[1762447745105,4.54973447,155.08,155.05,8.12]
[1762447746115,4.54973447,155.07,155.05,8.12]
[1762447746735,25.14173447,155.06,155.02,11.10390574]
[1762447746899,4.54973447,155.03,155.02,8.12]
[1762447747224,20.592,155.04,155.0,0.64516129]
[1762447747396,25.14173447,155.04,155.01,8.12]
[1762447747598,25.14173447,155.02,155.01,8.12]
[1762447747802,25.14173447,155.02,154.97,7.12282398]
[1762447747803,20.592,155.01,155.0,8.12]
[1762447748011,20.592,155.03,155.0,8.12]
[1762447748210,20.592,155.03,155.01,0.67]
[1762447748417,20.592,155.03,155.0,19.1213078]
[1762447748418,20.592,155.03,155.0,8.12]
[1762447748625,4.54973447,155.01,155.0,8.12]
[1762447749024,5.23973447,155.01,154.95,18.57882769]
[1762447749200,4.54973447,154.99,154.96,8.12]
[1762447749401,25.14173447,154.98,154.95,10.45882769]
[1762447749607,5.2965407,155.06,154.97,14.33856216]
[1762447749817,4.54973447,155.07,155.03,6.45036444]
[1762447750019,4.54973447,155.08,155.04,8.12]
[1762447750322,4.54973447,155.06,155.04,8.12]
[1762447750822,4.54973447,155.05,155.04,8.12]
[1762447751038,20.592,155.02,154.97,5.21973447]
[1762447751196,25.14173447,155.02,154.98,19.22407223]
[1762447751518,4.54973447,155.01,154.98,19.22407223]
[1762447751913,4.54973447,155.02,154.99,0.67]
[1762447752425,4.54973447,155.0,154.98,17.90882769]
[1762447752734,20.592,155.03,154.98,17.90882769]
[1762447752899,4.54973447,154.99,154.98,8.12]
[1762447753095,20.592,155.01,154.98,8.79]
[1762447753340,4.54973447,154.99,154.98,8.79]
[1762447753500,4.54973447,154.99,154.98,8.12]
[1762447753701,20.592,155.01,154.98,8.12]
[1762447753908,4.54973447,154.99,154.98,8.12]
[1762447754120,8.77279548,154.99,154.95,10.45882769]
[1762447754328,8.77279548,154.99,154.98,8.12]
[1762447754329,0.69,154.99,154.98,8.12]
[1762447754508,4.22099837,154.99,154.98,8.12]
[1762447754709,24.81299837,154.99,154.98,8.12]
[1762447755226,25.50299837,154.99,154.98,8.12]
[1762447755417,24.81299837,154.99,154.98,8.12]
[1762447755726,30.05273284,154.99,154.98,8.12]
[1762447755927,30.05273284,154.99,154.9,16.32557779]
[1762447755928,34.60246731,154.99,154.9,16.32557779]
[1762447756130,20.592,154.96,154.91,17.90882769]
[1762447756309,4.54973447,154.95,154.92,9.78882769]
[1762447756506,6.99453023,155.03,154.92,9.78882769]
[1762447756507,4.54973447,154.93,154.92,0.67]
[1762447757211,4.54973447,154.94,154.92,0.67]
[1762447757408,4.54973447,154.93,154.92,0.67]
[1762447757711,4.54973447,154.93,154.91,8.12]
[1762447757907,4.54973447,154.92,154.91,8.12]
[1762447758128,20.592,154.94,154.91,8.12]
[1762447758308,21.282,154.94,154.91,8.12]
[1762447758624,4.54973447,154.92,154.91,8.12]
[1762447759009,20.592,154.94,154.91,8.12]
[1762447759319,4.54973447,154.92,154.89,8.12]
[1762447759648,4.54973447,154.9,154.89,8.12]
[1762447759806,4.54973447,154.9,154.88,0.47602803]
[1762447759807,20.592,154.9,154.88,0.47602803]
[1762447760001,4.54973447,154.89,154.88,0.47602803]
[1762447760636,20.592,154.9,154.88,0.47602803]
[1762447760830,20.592,154.92,154.88,1.14602803]
[1762447761133,20.592,154.92,154.88,0.47602803]
[1762447761134,4.54973447,154.89,154.88,0.47602803]
[1762447761302,20.592,154.92,154.88,1.14602803]
[1762447761508,5.2965407,154.95,154.88,0.47602803]
[1762447761829,4.21110263,154.94,154.9,16.24438809]
[1762447762013,5.9865407,154.98,154.9,16.24438809]
[1762447762208,4.54973447,154.95,154.91,0.67]
[1762447762411,24.80731944,154.94,154.88,1.81168918]
[1762447762624,4.54973447,154.91,154.89,17.90882769]
[1762447762938,4.54973447,154.9,154.89,17.90882769]
[1762447763320,4.54973447,154.91,154.89,18.59882769]
[1762447763634,20.592,154.94,154.9,0.69]
[1762447763833,4.21737065,154.93,154.9,1.33557779]
[1762447764034,25.14173447,154.94,154.92,9.78882769]
[1762447764343,5.2965407,155.0,154.92,9.78882769]
[1762447764549,4.21947994,154.99,154.95,14.33856216]
[1762447764714,4.54973447,155.0,154.96,8.76532782]
[1762447765023,4.54973447,154.99,154.96,9.45532782]
[1762447765539,4.54973447,154.99,154.97,0.69]
[1762447766548,4.54973447,154.98,154.97,0.69]
[1762447766713,4.54973447,154.98,154.96,8.12]
[1762447766916,4.54973447,154.97,154.94,0.69]
[1762447767113,20.592,154.99,154.96,8.12]
[1762447767313,4.22891419,154.98,154.96,8.12]
[1762447767513,20.592,155.01,154.96,8.12]
[1762447767730,0.7,155.02,154.96,8.12]
[1762447767731,20.592,154.98,154.96,8.12]
[1762447768041,4.23201911,154.97,154.96,8.12]
[1762447768239,8.78175358,154.97,154.96,8.12]
[1762447769117,8.78175358,154.97,154.92,16.93346265]
[1762447769335,4.54973447,154.95,154.93,8.1]
[1762447769540,25.8885407,154.98,154.93,8.1]
[1762447769541,4.23201911,154.94,154.93,8.1]
[1762447769738,4.23201911,154.94,154.93,8.79]
[1762447770341,4.23201911,154.94,154.93,15.24452785]
[1762447770513,4.23201911,154.94,154.93,25.67880832]
[1762447770716,4.54973447,154.97,154.93,15.88998063]
[1762447770917,8.79024887,154.96,154.94,10.47882769]
[1762447771123,25.8885407,155.01,154.95,5.19510394]
[1762447771443,4.24292675,155.0,154.96,10.47882769]
[1762447771616,4.24280389,154.99,154.98,9.78882769]
[1762447772113,4.24280389,154.99,154.98,0.69]
[1762447772320,4.24280389,154.99,154.98,10.47882769]
[1762447772514,8.79253836,154.99,154.98,9.78882769]
[1762447772724,8.79253836,154.99,154.94,10.47882769]
[1762447772950,5.2965407,155.0,154.92,0.64549444]
[1762447772951,4.54973447,154.97,154.95,8.79]
[1762447773143,4.24280389,154.96,154.95,8.79]
[1762447773329,4.24280389,154.96,154.95,8.1]
[1762447773712,4.24280389,154.96,154.95,8.79]
[1762447774141,8.79253836,154.96,154.95,8.1]
[1762447774345,8.79253836,154.96,154.9,1.33557779]
[1762447774663,4.24280389,154.95,154.91,8.1]
[1762447774842,4.24280389,154.94,154.92,1.33549444]
[1762447775142,5.2965407,155.01,154.93,9.78882769]
[1762447775444,9.5418064,155.0,154.94,0.64541112]
[1762447775642,4.54973447,154.98,154.96,9.78882769]
[1762447775829,4.2452657,154.97,154.96,9.78882769]
[1762447776029,4.2452657,154.97,154.96,17.88882769]
[1762447776362,4.2452657,154.97,154.96,25.03210595]
[1762447776648,4.2452657,154.97,154.96,18.57882769]
[1762447777325,4.2452657,154.97,154.96,25.03210595]
[1762447778134,5.2965407,155.02,154.96,45.71503608]
[1762447778330,8.80323899,155.01,154.98,9.78882769]
[1762447778529,4.54973447,154.99,154.96,8.1]
[1762447778754,4.54973447,154.97,154.96,17.88882769]
[1762447778954,8.80323899,154.97,154.96,8.1]
[1762447779118,4.25350452,154.97,154.96,17.88882769]
[1762447779322,4.25350452,154.97,154.96,19.22415551]
[1762447779625,4.54973447,155.0,154.97,9.78882769]
[1762447779851,4.54973447,155.0,154.96,9.43532782]
[1762447779852,4.25169516,154.99,154.96,9.43532782]
[1762447780053,8.80142963,154.98,154.96,8.79]
[1762447780352,8.80142963,154.97,154.96,8.1]
[1762447780554,4.25169516,154.97,154.96,14.55327826]
[1762447780727,4.25169516,154.97,154.96,8.1]
[1762447781051,8.80142963,154.97,154.96,8.1]
[1762447781256,8.80142963,154.97,154.95,1.14]
[1762447781547,8.80142963,154.96,154.95,1.14]
[1762447782244,4.25169516,154.96,154.95,18.07252243]
[1762447782450,4.54973447,154.99,154.95,18.07252243]
[1762447782653,4.25780395,154.98,154.97,9.78882769]
[1762447782951,5.2965407,155.05,154.97,22.43856216]
[1762447783122,4.54973447,155.02,154.98,1.33524454]
[1762447783324,4.54973447,155.02,154.99,9.78882769]
[1762447783545,4.25771856,155.01,155.0,10.43398898]
[1762447783738,4.54973447,155.03,155.0,1.33516129]
[1762447784141,4.54973447,155.03,155.01,7.1407831]
[1762447784541,4.54973447,155.03,155.0,0.64516129]
[1762447784755,4.54973447,155.04,155.02,0.69]
[1762447785056,25.14173447,155.06,155.03,8.1]
[1762447785267,4.54973447,155.04,155.03,8.1]
[1762447785434,8.80650536,155.04,155.03,8.1]
[1762447786134,4.54973447,155.04,155.03,8.1]
[1762447786442,8.80410659,155.04,155.03,8.1]
[1762447786971,4.54973447,155.05,155.03,14.55028174]
[1762447787129,20.592,155.07,155.04,0.69]
[1762447787328,8.80171292,155.06,155.03,14.5501058]
[1762447787641,4.54973447,155.06,155.04,0.69]
[1762447787946,20.592,155.07,155.03,8.79]
[1762447788252,29.3905557,155.06,155.03,8.79]
[1762447788438,25.14173447,155.06,155.03,8.79]
[1762447788751,25.14173447,155.06,155.03,15.24035922]
[1762447788752,4.54973447,155.06,155.03,15.24035922]
[1762447788933,4.54973447,155.06,155.03,8.79]
[1762447789136,4.54973447,155.04,155.03,8.1]
[1762447789440,4.54973447,155.04,154.99,16.24057946]
[1762447789624,4.54973447,155.03,155.0,8.79]
[1762447789939,5.2965407,155.08,155.01,10.43394735]
[1762447790138,4.24623864,155.07,155.01,11.12394735]
[1762447790343,4.24623864,155.06,155.02,14.28912465]
[1762447790538,7.14834411,155.07,155.04,9.78882769]
[1762447790926,7.14834411,155.06,155.04,9.78882769]
[1762447791122,7.14834411,155.07,155.04,9.78882769]
[1762447791350,7.14834411,155.06,155.04,9.78882769]
[1762447791651,7.14834411,155.07,155.04,9.78882769]
[1762447791856,7.14834411,155.08,155.04,10.47882769]
[1762447792358,20.592,155.1,155.05,6.4495324]
[1762447792529,20.592,155.1,155.06,8.1]
[1762447792530,7.14834411,155.07,155.06,8.1]
[1762447792733,20.592,155.1,155.06,8.1]
[1762447792924,7.14834411,155.07,155.06,8.1]
[1762447793126,11.39154163,155.07,155.06,8.1]
[1762447793329,7.14834411,155.07,155.06,8.1]
[1762447793551,11.3909125,155.07,155.06,8.08]
[1762447793849,20.592,155.08,155.06,8.08]
[1762447794050,7.14834411,155.07,155.06,8.08]
[1762447794559,7.83834411,155.07,155.06,8.08]
[1762447794727,12.07966923,155.07,155.06,8.08]
[1762447795334,11.38966923,155.07,155.06,8.08]
[1762447795660,4.24132512,155.07,155.06,8.08]
[1762447795951,20.592,155.08,155.06,8.08]
[1762447796162,7.14834411,155.07,155.06,8.08]
[1762447796943,20.592,155.08,155.06,8.08]
[1762447797555,7.14834411,155.07,155.06,8.08]
[1762447799353,12.07341801,155.07,155.05,8.08]
[1762447799669,7.14834411,155.06,155.05,8.08]
[1762447799832,12.0725561,155.06,155.05,8.08]
[1762447800034,11.3825561,155.06,155.05,8.08]
[1762447800257,12.0725561,155.06,154.98,0.64524454]
[1762447800437,7.14834411,154.99,154.95,1.14]
[1762447800642,27.74034411,154.96,154.95,1.14]
[1762447801057,0.69,155.01,154.95,11.61882769]
[1762447801355,5.2965407,155.08,154.99,7.14834411]
[1762447801559,4.22938895,155.07,155.01,9.78882769]
[1762447801740,7.14834411,155.06,155.03,9.78882769]
[1762447802135,7.14834411,155.04,155.02,0.64507805]
[1762447802465,20.592,155.07,155.0,8.77]
[1762447802638,7.14834411,155.04,155.0,15.22121435]
[1762447802956,7.14834411,155.04,155.01,11.12394735]
[1762447803163,21.282,155.07,154.97,0.64528618]
[1762447803164,7.14834411,155.02,154.97,0.64528618]
[1762447803375,21.282,155.03,154.98,8.08]
[1762447803680,7.14834411,154.99,154.95,1.14]
[1762447803835,0.69,155.01,154.96,8.08]
[1762447804043,24.82628331,155.0,154.96,8.08]
[1762447804235,20.592,155.0,154.96,8.77]
[1762447804438,4.23388395,154.99,154.96,8.08]
[1762447804734,0.69,155.01,154.96,8.08]
[1762447804735,20.592,155.01,154.97,16.93168953]
[1762447804939,20.592,155.01,154.99,9.78882769]
[1762447805132,0.69,155.07,155.0,0.69]
[1762447805345,5.2965407,155.08,155.0,0.69]
[1762447805346,7.14834411,155.02,155.0,0.69]
[1762447805733,7.14834411,155.01,154.97,1.33528618]
[1762447805945,7.14834411,155.02,154.99,9.78882769]
[1762447806269,123.492,155.05,154.99,9.78882769]
[1762447806270,5.2965407,155.07,155.0,7.7935054]
[1762447806595,7.14834411,155.05,155.02,9.78882769]
[1762447807064,0.69,155.09,155.03,0.69]
[1762447807260,4.2436379,155.08,155.04,9.78882769]
[1762447807567,7.14834411,155.08,155.04,9.78882769]
[1762447807761,20.592,155.1,155.05,0.69]
[1762447807977,4.24653018,155.09,155.07,7.14834411]
[1762447808163,4.24653018,155.09,155.06,10.43373933]
[1762447808164,7.14834411,155.14,155.09,9.78882769]
[1762447808362,11.39514378,155.13,155.08,0.64482847]
[1762447808557,7.14834411,155.11,155.1,8.08]
[1762447808886,7.14834411,155.12,155.1,8.08]
[1762447809047,0.2,155.15,155.1,24.31622122]
[1762447809250,4.24621667,155.14,155.11,0.69]
[1762447809547,7.34834411,155.15,155.11,0.69]
[1762447809750,0.2,155.15,155.12,9.78882769]
[1762447809945,0.2,155.15,155.13,0.69]
[1762447810373,20.592,155.14,155.12,9.78882769]
[1762447810575,7.34834411,155.15,155.12,10.47882769]
[1762447810756,7.14834411,155.13,155.1,8.08]
[1762447810947,4.24295835,155.14,155.11,0.69]
[1762447810948,20.592,155.14,155.11,0.69]
[1762447811149,20.592,155.14,155.12,9.78882769]
[1762447811365,20.592,155.14,155.11,8.48304786]
[1762447811366,0.2,155.15,155.14,9.78882769]
[1762447811571,0.2,155.15,155.14,25.7071718]
[1762447812575,0.2,155.15,155.11,0.64470375]
[1762447812777,7.14834411,155.13,155.12,8.08]
[1762447813473,11.38086303,155.13,155.12,8.08]
[1762447813863,4.23251892,155.13,155.12,8.08]
[1762447814075,11.38086303,155.13,155.12,8.08]
[1762447815177,27.74034411,155.14,155.12,8.77]
[1762447815399,0.2,155.15,155.13,17.6271718]
[1762447815553,0.2,155.15,155.14,9.78882769]
[1762447815747,7.34834411,155.15,155.12,8.08]
[1762447815952,7.34834411,155.15,155.1,9.78882769]
[1762447815953,7.14834411,155.13,155.1,9.78882769]
[1762447816155,7.14834411,155.12,155.11,8.06]
[1762447817081,0.2,155.15,155.11,8.06]
[1762447817259,7.14834411,155.12,155.11,8.06]
[1762447817656,7.14834411,155.12,155.08,1.33482847]
[1762447817657,20.592,155.12,155.08,1.33482847]
[1762447817877,20.592,155.12,155.09,8.75]
[1762447818082,7.14834411,155.11,155.09,8.06]
[1762447818298,20.592,155.13,155.09,8.06]
[1762447818575,11.3755121,155.12,155.09,8.75]
[1762447818878,7.14834411,155.12,155.09,8.75]
[1762447819472,7.14834411,155.11,155.09,8.06]
[1762447819652,7.14834411,155.12,155.09,8.75]
[1762447820280,21.282,155.14,155.09,8.06]
[1762447820488,7.14834411,155.1,155.09,8.06]
[1762447820972,20.592,155.12,155.06,7.13910378]
[1762447821182,7.14834411,155.11,155.09,8.06]
[1762447821365,20.592,155.12,155.09,8.06]
[1762447821567,0.69,155.11,155.09,8.06]
[1762447821767,7.14834411,155.1,155.09,8.06]
[1762447822556,0.2,155.15,155.09,8.76]
[1762447822786,0.2,155.15,155.12,16.9371718]
[1762447822958,0.2,155.15,155.14,9.78882769]
[1762447823281,7.34834411,155.15,155.14,10.48882769]
[1762447823580,0.2,155.15,155.14,10.48882769]
[1762447823781,4.22321055,155.2,155.17,20.592]
[1762447823957,7.34834411,155.22,155.18,18.49324062]
[1762447824284,7.34834411,155.22,155.11,1.99999999]
[1762447824285,7.14834411,155.19,155.12,0.7]
[1762447824582,7.14834411,155.13,155.08,9.78882769]
[1762447824787,20.592,155.16,155.1,9.78882769]
[1762447825083,7.14834411,155.11,155.09,8.06]
[1762447825259,4.87376854,155.15,155.09,17.84882769]
[1762447825260,7.14834411,155.1,155.09,17.84882769]
[1762447825583,7.14834411,155.11,155.09,24.99669666]
[1762447825883,5.9465407,155.2,155.11,9.78882769]
[1762447826083,7.14834411,155.12,155.08,0.7]
[1762447826265,20.592,155.15,155.09,8.06]
[1762447826467,7.14834411,155.1,155.09,17.84882769]
[1762447826977,20.592,155.14,155.09,9.78882769]
[1762447827179,7.14834411,155.1,155.09,18.54882769]
[1762447827363,20.592,155.14,155.09,24.99669666]
[1762447827569,7.14834411,155.12,155.1,10.48882769]
[1762447827777,20.592,155.14,155.1,0.7]
[1762447827967,20.592,155.11,155.09,8.06]
[1762447828294,20.592,155.11,155.09,8.76]
[1762447828582,7.14834411,155.1,155.04,9.78882769]
[1762447828783,7.14834411,155.07,155.06,9.78882769]
[1762447828965,20.592,155.09,155.05,8.06]
[1762447829169,7.14834411,155.06,155.02,9.78882769]
[1762447829367,20.592,155.07,155.01,0.7]
[1762447829368,20.592,155.07,155.03,8.06]
[1762447829564,7.14834411,155.04,155.03,8.06]
[1762447829970,5.290847,155.11,155.04,9.78882769]
[1762447829971,20.592,155.08,155.04,9.78882769]
[1762447830176,7.14834411,155.06,155.04,9.78882769]
[1762447830466,20.592,155.1,155.05,0.7]
[1762447830665,7.14834411,155.07,155.05,0.7]
[1762447830884,20.592,155.1,155.06,10.43373933]
[1762447831183,5.290847,155.14,155.06,10.43373933]
[1762447831184,7.14834411,155.09,155.06,10.43373933]
[1762447831391,20.592,155.11,155.06,10.43373933]
[1762447831392,7.14834411,155.08,155.06,10.43373933]
[1762447831567,7.14834411,155.09,155.07,0.7]
[1762447832058,7.14834411,155.08,155.06,0.64491164]
[1762447832260,7.14834411,155.08,155.05,10.43378093]
[1762447832459,7.14834411,155.08,155.06,7.14900109]
[1762447832686,7.14834411,155.09,155.06,7.14900109]
[1762447832888,20.592,155.12,155.07,0.7]
[1762447833085,20.592,155.12,155.07,7.79337496]
[1762447833086,4.23533629,155.11,155.07,7.79337496]
[1762447833256,20.592,155.12,155.08,9.78882769]
[1762447833586,7.14834411,155.09,155.08,9.78882769]
[1762447833771,7.14834411,155.09,155.08,17.84882769]
[1762447834363,21.242,155.12,155.08,17.84882769]
[1762447834579,7.14834411,155.09,155.08,17.84882769]
[1762447834759,27.74034411,155.1,155.08,17.84882769]
[1762447834961,20.592,155.1,155.09,7.14786897]
[1762447835174,7.14834411,155.12,155.1,9.78882769]
[1762447835386,7.14834411,155.11,155.08,8.06]
[1762447835683,27.74034411,155.09,155.08,8.06]
[1762447835988,31.97473464,155.09,155.08,8.06]
[1762447836385,12.03273464,155.09,155.08,8.06]
[1762447836561,32.62473464,155.09,155.08,8.06]
[1762447837781,32.62473464,155.09,154.95,17.52]
[1762447837782,9.78882769,155.08,154.95,17.52]
[1762447838081,9.78882769,155.08,154.95,1.14]
[1762447838082,7.14834411,154.96,154.95,1.14]
[1762447838306,27.74034411,154.96,154.95,1.14]
[1762447838468,12.06139162,154.96,154.95,1.14]
[1762447839158,32.65210337,154.96,154.95,1.14]
[1762447839362,12.06010337,154.96,154.95,1.14]
[1762447839961,7.14834411,154.96,154.95,1.14]
[1762447840685,12.05445196,154.96,154.95,1.14]
[1762447840889,32.64645196,154.96,154.95,1.14]
[1762447841069,12.05445196,154.96,154.95,1.14]
[1762447841884,32.64645196,154.96,154.95,1.14]
[1762447842089,27.74034411,154.96,154.95,1.14]
[1762447842386,12.04619132,154.96,154.88,0.47602803]
[1762447842685,7.14834411,154.99,154.88,8.53602803]
[1762447842686,7.14834411,154.89,154.88,8.53602803]
[1762447842868,20.592,154.93,154.88,8.53602803]
[1762447843068,7.14834411,154.89,154.88,8.53602803]
[1762447844096,7.14834411,154.89,154.88,0.47602803]
[1762447845079,7.83834411,154.89,154.88,0.47602803]
[1762447845280,20.592,154.87,154.86,8.06]
[1762447845591,20.592,154.87,154.83,3.36354802]
[1762447845592,31.93276448,154.87,154.83,3.36354802]
[1762447845772,7.79834411,154.88,154.83,3.36354802]
[1762447845773,7.14834411,154.84,154.83,3.36354802]
[1762447845968,20.592,154.85,154.83,10.522196]
[1762447846170,7.14834411,154.84,154.83,3.36354802]
[1762447846366,7.79834411,154.84,154.82,0.1]
[1762447846592,20.592,154.81,154.75,0.1]
[1762447846794,28.39034411,154.81,154.75,0.1]
[1762447846969,0.65,154.85,154.76,0.7]
[1762447847172,24.7761798,154.84,154.77,16.24993329]
[1762447847394,7.14834411,154.81,154.78,6.46074111]
[1762447847582,20.592,154.81,154.78,6.46074111]
[1762447847780,27.74034411,154.81,154.8,0.8]
[1762447847966,27.74034411,154.81,154.8,0.1]
[1762447848167,20.592,154.84,154.8,0.8]
[1762447848392,7.14834411,154.81,154.8,0.1]
[1762447849279,0.65,154.81,154.8,0.1]
[1762447849597,7.14834411,154.81,154.8,0.1]
[1762447849795,16.9371718,154.88,154.8,0.1]
[1762447849796,0.65,154.86,154.8,0.1]
[1762447849999,5.27719907,154.89,154.8,0.1]
[1762447850000,7.14834411,154.83,154.81,9.78882769]
[1762447850383,7.14834411,154.83,154.82,10.48882769]
[1762447850582,5.56629545,154.9,154.83,9.78882769]
[1762447850790,7.14834411,154.87,154.83,9.78882769]
[1762447851078,20.592,154.84,154.83,6.45869663]
[1762447851274,7.14834411,154.89,154.84,9.78882769]
[1762447851481,20.592,154.91,154.84,16.9371718]
[1762447851779,7.14834411,154.92,154.86,16.9371718]
[1762447851994,7.14834411,154.92,154.83,22.60543821]
[1762447851995,20.592,154.89,154.88,9.78882769]
[1762447852186,20.592,154.89,154.88,17.84882769]
[1762447852387,6.24525757,154.95,154.88,18.50882769]
[1762447852388,25.14988591,154.92,154.88,18.50882769]
[1762447852782,20.592,154.89,154.88,18.50882769]
[1762447853087,4.55788591,154.91,154.88,17.84882769]
[1762447853289,4.55788591,154.91,154.88,18.50882769]
[1762447853683,4.55788591,154.9,154.88,18.50882769]
[1762447854286,20.592,154.92,154.88,18.50882769]
[1762447854481,4.55788591,154.89,154.85,0.64578624]
[1762447854777,4.55788591,154.89,154.8,0.1]
[1762447854778,20.592,154.85,154.81,0.66]
[1762447854981,4.55788591,154.86,154.81,0.66]
[1762447855184,25.14988591,154.86,154.82,9.78882769]
[1762447855400,4.55788591,154.86,154.82,10.44882769]
[1762447855587,4.55788591,154.84,154.82,0.66]
[1762447855777,20.592,154.85,154.81,9.78882769]
[1762447855980,20.592,154.85,154.82,0.66]
[1762447856179,20.592,154.89,154.82,0.66]
[1762447856584,4.55788591,154.86,154.82,0.66]
[1762447856910,0.65,154.93,154.84,9.78882769]
[1762447857080,4.80636717,154.92,154.84,9.78882769]
[1762447857388,4.55788591,154.9,154.84,10.44882769]
[1762447857704,4.55788591,154.89,154.86,9.78882769]
[1762447857886,4.55788591,154.9,154.87,8.04]
[1762447858409,4.55788591,154.88,154.87,8.04]
[1762447858820,5.20788591,154.88,154.87,8.04]
[1762447859018,9.36056368,154.88,154.87,8.04]
[1762447859186,8.71056368,154.88,154.87,8.04]
[1762447859390,4.55788591,154.88,154.82,0.66]
[1762447859611,20.592,154.88,154.85,8.04]
[1762447860012,102.9,154.87,154.85,8.04]
[1762447860215,0.65,154.93,154.86,10.44882769]
[1762447860399,4.15328519,154.92,154.86,10.44882769]
[1762447860593,0.65,154.93,154.8,0.1]
[1762447860594,11.78882768,154.9,154.8,0.1]
[1762447860808,11.78882768,154.9,154.8,4.02]
[1762447860809,20.592,154.87,154.8,4.02]
[1762447861017,19.39,154.91,154.82,14.3467136]
[1762447861018,4.55788591,154.88,154.82,14.3467136]
[1762447861197,4.55788591,154.87,154.84,9.78882769]
[1762447861524,25.14988591,154.87,154.84,9.78882769]
[1762447862013,4.55788591,154.89,154.85,0.66]
[1762447862257,5.20770501,154.94,154.85,0.66]
[1762447862391,5.20770501,154.98,154.89,4.55788591]
[1762447862589,5.20770501,154.98,154.85,1.30578624]
[1762447862590,4.15615689,154.97,154.91,9.78882769]
[1762447862790,4.55788591,154.97,154.92,0.64549444]
[1762447863010,4.55788591,154.96,154.92,0.64549444]
[1762447863206,4.55788591,154.96,154.92,6.45494448]
[1762447863403,0.65,154.99,154.92,6.45494448]
[1762447863404,5.67158903,155.0,154.93,11.09428047]
[1762447863720,4.55788591,154.97,154.93,11.09428047]
[1762447864020,20.592,154.96,154.93,11.09428047]
[1762447864223,20.592,154.96,154.94,0.66]